bitfinex-derivatives/quotes_BTCF0:USTF0_20250426
["timestamp","ask_amount","ask_price","bid_price","bid_amount"]
[1745663189507,0.184,94415.0,94414.0,0.6341652]
[1745663190502,0.184,94415.0,94414.0,0.64973824]
[1745663190901,0.184,94415.0,94414.0,0.28893824]
[1745663191206,0.184,94415.0,94414.0,0.64973824]
[1745663191705,0.184,94415.0,94414.0,0.28893815]
[1745663191907,0.0312,94420.0,94419.0,0.2117539]
[1745663192104,0.0912,94420.0,94419.0,0.2117539]
[1745663192701,0.0912,94420.0,94419.0,0.2738539]
[1745663193096,0.234,94420.0,94419.0,0.2738539]
[1745663193297,0.239,94420.0,94419.0,0.3738539]
[1745663193501,0.1819735,94420.0,94419.0,0.3738539]
[1745663194099,0.0139735,94420.0,94419.0,0.3738539]
[1745663194899,0.0109735,94420.0,94419.0,0.3738539]
[1745663195104,0.1789735,94420.0,94419.0,0.3738539]
[1745663195400,0.1739735,94420.0,94419.0,0.3738539]
[1745663200414,0.1729735,94420.0,94419.0,0.3738539]
[1745663200710,0.1739735,94420.0,94419.0,0.3738539]
[1745663200916,0.1719735,94420.0,94419.0,0.3738539]
[1745663201104,0.1729735,94420.0,94419.0,0.3738539]
[1745663201600,0.1729735,94420.0,94419.0,0.38947525]
[1745663202203,0.1729735,94420.0,94419.0,0.75027525]
[1745663202512,0.1729735,94420.0,94419.0,0.75027621]
[1745663202812,0.0948,94436.0,94427.0,0.211736]
[1745663203013,0.0652,94428.0,94427.0,0.58815831]
[1745663203209,0.2332,94428.0,94427.0,0.65125831]
[1745663204114,0.2342,94428.0,94427.0,0.65125831]
[1745663204622,0.2342,94428.0,94427.0,0.65137855]
[1745663205114,0.0529367,94423.0,94418.0,0.2117559]
[1745663205305,0.3608,94421.0,94420.0,0.2117517]
[1745663205505,0.7308,94421.0,94401.0,0.01068052]
[1745663205812,0.2117662,94414.0,94413.0,0.2117584]
[1745663206013,0.5617662,94414.0,94413.0,0.2117584]
[1745663206215,0.7297662,94414.0,94413.0,0.2117584]
[1745663206410,0.518,94414.0,94413.0,0.2117584]
[1745663206714,0.549,94414.0,94413.0,0.2117584]
[1745663206909,0.549,94414.0,94413.0,0.2127584]
[1745663207308,0.7607652,94414.0,94413.0,0.2127584]
[1745663207818,0.7607652,94414.0,94413.0,0.2137584]
[1745663209718,0.7607652,94414.0,94413.0,0.2127584]
[1745663211820,0.7607652,94414.0,94413.0,0.2117584]
[1745663212010,0.7607652,94414.0,94413.0,0.2127584]
[1745663213418,0.7607652,94414.0,94413.0,0.2117584]
[1745663214620,0.7607652,94414.0,94413.0,0.2127584]
[1745663215122,0.7607652,94414.0,94413.0,0.2137584]
[1745663216509,0.7934652,94414.0,94413.0,0.2117584]
[1745663216715,0.7934652,94414.0,94413.0,0.2127584]
[1745663217116,0.7934652,94414.0,94413.0,0.2117584]
[1745663217320,0.7934652,94414.0,94413.0,0.2127584]
[1745663217716,0.7934652,94414.0,94413.0,0.2117584]
[1745663217915,0.7934652,94414.0,94413.0,0.2127584]
[1745663219021,1.1542652,94414.0,94413.0,0.2127584]
[1745663219417,1.1542652,94414.0,94413.0,0.2117584]
[1745663224026,0.7934652,94414.0,94413.0,0.2117584]
[1745663224326,1.1542652,94414.0,94413.0,0.2117584]
[1745663226529,0.7934652,94414.0,94413.0,0.2117584]
[1745663226733,1.1542652,94414.0,94413.0,0.2117584]
[1745663230733,0.7934652,94414.0,94413.0,0.2117584]
[1745663230934,1.1542652,94414.0,94413.0,0.2117584]
[1745663233129,0.7934652,94414.0,94413.0,0.2117584]
[1745663233336,1.1542652,94414.0,94413.0,0.2117584]
[1745663236032,1.1542652,94414.0,94413.0,0.2431584]
[1745663236528,1.1542652,94414.0,94413.0,0.2732584]
[1745663236831,1.1232652,94414.0,94413.0,0.2732584]
[1745663240945,0.7624652,94414.0,94413.0,0.2732584]
[1745663242542,0.7955652,94414.0,94413.0,0.2732584]
[1745663244736,0.7955652,94414.0,94413.0,0.0301]
[1745663244937,0.7955652,94414.0,94413.0,0.2418674]
[1745663245143,0.7955652,94414.0,94413.0,0.0301]
[1745663245337,0.2647254,94409.0,94408.0,0.2647228]
[1745663245538,0.5817809,94409.0,94408.0,0.2647228]
[1745663245744,0.6438809,94409.0,94408.0,0.2647228]
[1745663245949,0.6438809,94409.0,94408.0,0.2947228]
[1745663246245,0.8118809,94409.0,94408.0,0.2947228]
[1745663246645,0.8118809,94409.0,94408.0,0.2957228]
[1745663247149,0.8118809,94409.0,94408.0,0.2967228]
[1745663249246,0.8118809,94409.0,94408.0,0.3277228]
[1745663255954,0.8118809,94409.0,94408.0,0.3267228]
[1745663256148,0.8118809,94409.0,94408.0,0.3277228]
[1745663265360,0.8118809,94409.0,94408.0,0.3257228]
[1745663265661,0.8118809,94409.0,94408.0,0.3277228]
[1745663267563,0.8118809,94409.0,94408.0,0.3267228]
[1745663267760,0.8118809,94409.0,94408.0,0.3257228]
[1745663268257,0.8118809,94409.0,94408.0,0.3267228]
[1745663268564,0.8118809,94409.0,94408.0,0.3277228]
[1745663269465,0.5686,94409.0,94408.0,0.3277228]
[1745663269652,0.7497764,94409.0,94408.0,0.3277228]
[1745663269964,0.538,94409.0,94408.0,0.3277228]
[1745663270266,0.538,94409.0,94408.0,0.3267228]
[1745663270457,0.7497764,94409.0,94408.0,0.3277228]
[1745663270865,0.7497764,94409.0,94408.0,0.3267228]
[1745663271365,0.538,94409.0,94408.0,0.3267228]
[1745663271565,0.538,94409.0,94408.0,0.3257228]
[1745663272265,0.538,94409.0,94408.0,0.3267228]
[1745663273265,0.7497764,94409.0,94408.0,0.3267228]
[1745663273666,0.7497764,94409.0,94408.0,0.3277228]
[1745663273967,0.7497764,94409.0,94408.0,0.3267228]
[1745663274154,0.7497764,94409.0,94408.0,0.3257228]
[1745663276567,0.7828764,94409.0,94408.0,0.3257228]
[1745663280370,0.7828764,94409.0,94408.0,0.3267228]
[1745663280673,0.7828764,94409.0,94408.0,0.3277228]
[1745663280867,0.7828764,94409.0,94408.0,0.3267228]
[1745663282174,0.7828764,94409.0,94408.0,0.3257228]
[1745663283271,0.2117943,94401.0,94400.0,0.00158868]
[1745663283475,0.211819,94390.0,94389.0,0.2647733]
[1745663283676,0.461819,94390.0,94389.0,0.2647733]
[1745663284067,0.629819,94390.0,94389.0,0.2647733]
[1745663284266,0.629819,94390.0,94387.0,0.0303]
[1745663284267,0.2118235,94388.0,94387.0,0.2118249]
[1745663284473,0.5518235,94388.0,94387.0,0.2118249]
[1745663285076,0.7198235,94388.0,94387.0,0.2118249]
[1745663285571,0.7198235,94388.0,94387.0,0.2148249]
[1745663285771,0.7521235,94388.0,94387.0,0.2148249]
[1745663286479,0.7521235,94388.0,94387.0,0.2505249]
[1745663287172,0.7521235,94388.0,94387.0,0.2495249]
[1745663293070,0.7521235,94388.0,94387.0,0.2485249]
[1745663293684,0.7521235,94388.0,94387.0,0.2465249]
[1745663293878,0.7521235,94388.0,94387.0,0.2455249]
[1745663295983,0.7521235,94388.0,94387.0,0.2465249]
[1745663297180,0.7521235,94388.0,94387.0,0.2455249]
[1745663301179,0.7521235,94388.0,94387.0,0.2128249]
[1745663304285,0.7521235,94388.0,94387.0,0.2128257]
[1745663308582,1.1129235,94388.0,94387.0,0.2128257]
[1745663310591,0.7521235,94388.0,94387.0,0.2128257]
[1745663310779,1.1129235,94388.0,94387.0,0.2128257]
[1745663313292,1.1129235,94388.0,94387.0,0.2118257]
[1745663314495,1.1139235,94388.0,94387.0,0.2118257]
[1745663316494,0.2118257,94387.0,94386.0,0.0322]
[1745663316682,0.5820257,94387.0,94386.0,0.0322]
[1745663316882,0.6149257,94387.0,94386.0,0.244028]
[1745663317089,0.7829257,94387.0,94386.0,0.244028]
[1745663317596,0.7839257,94387.0,94386.0,0.244028]
[1745663326003,1.1447257,94387.0,94386.0,0.244028]
[1745663326303,0.7839257,94387.0,94386.0,0.244028]
[1745663326506,1.1447257,94387.0,94386.0,0.244028]
[1745663329513,0.7839257,94387.0,94386.0,0.244028]
[1745663329809,1.1447257,94387.0,94386.0,0.244028]
[1745663330497,1.1118257,94387.0,94386.0,0.244028]
[1745663330695,1.1118257,94387.0,94386.0,0.276328]
[1745663331301,1.0816257,94387.0,94386.0,0.276328]
[1745663333404,1.0816257,94387.0,94386.0,0.277328]
[1745663334509,1.0806257,94387.0,94386.0,0.277328]
[1745663335599,1.0806257,94387.0,94386.0,0.276328]
[1745663335799,1.0806257,94387.0,94386.0,0.277328]
[1745663336799,1.0806257,94387.0,94386.0,0.276328]
[1745663339005,1.0806257,94387.0,94386.0,0.277328]
[1745663340610,1.0806257,94387.0,94386.0,0.276328]
[1745663343009,1.0806257,94387.0,94386.0,0.277328]
[1745663343503,1.0806257,94387.0,94386.0,0.276328]
[1745663343705,1.0806257,94387.0,94386.0,0.245028]
[1745663343908,1.1124257,94387.0,94386.0,0.0332]
[1745663344218,1.1124257,94387.0,94386.0,0.245028]
[1745663344513,1.1124257,94387.0,94386.0,0.0332]
[1745663344714,1.1124257,94387.0,94386.0,0.245028]
[1745663345305,1.1134257,94387.0,94386.0,0.245028]
[1745663346213,1.1134257,94387.0,94386.0,0.244028]
[1745663346414,1.1134257,94387.0,94386.0,0.245028]
[1745663346915,1.1134257,94387.0,94386.0,0.244028]
[1745663351720,1.1134257,94387.0,94386.0,0.0322]
[1745663352019,0.2648207,94375.0,94374.0,0.2118535]
[1745663352221,0.6048207,94375.0,94374.0,0.2118535]
[1745663352821,0.3929635,94375.0,94370.0,0.00105965]
[1745663353019,0.2118616,94371.0,94370.0,0.00105965]
[1745663353219,0.5618616,94371.0,94370.0,0.00105965]
[1745663353823,0.6222616,94371.0,94370.0,0.00105965]
[1745663354010,0.2118774,94364.0,94363.0,0.00158951]
[1745663354209,0.9126774,94364.0,94363.0,0.00158951]
[1745663354815,0.9730774,94364.0,94363.0,0.00158951]
[1745663355118,1.1410774,94364.0,94363.0,0.00158951]
[1745663355322,0.2118953,94357.0,94356.0,0.0529737]
[1745663355512,0.5518953,94357.0,94356.0,0.06083342]
[1745663355712,0.6139953,94357.0,94356.0,0.06083342]
[1745663355917,0.6139953,94357.0,94356.0,0.00785972]
[1745663356114,0.2118953,94356.0,94355.0,0.03]
[1745663356421,0.2118953,94356.0,94346.0,0.052979]
[1745663356422,0.0529765,94352.0,94347.0,0.2445116]
[1745663356613,0.2119133,94348.0,94347.0,0.2775116]
[1745663356811,0.4619133,94348.0,94347.0,0.2775116]
[1745663357010,0.4619133,94348.0,94347.0,0.04097897]
[1745663357210,0.6299133,94348.0,94347.0,0.033]
[1745663357918,0.6918133,94348.0,94347.0,0.033]
[1745663358619,1.0526133,94348.0,94347.0,0.033]
[1745663365028,1.0526133,94348.0,94347.0,0.2449155]
[1745663366823,1.0526133,94348.0,94347.0,0.033]
[1745663371917,0.6918133,94348.0,94347.0,0.033]
[1745663372116,1.0526133,94348.0,94347.0,0.033]
[1745663373823,0.6918133,94348.0,94347.0,0.033]
[1745663374028,1.0526133,94348.0,94347.0,0.033]
[1745663374628,1.0526133,94348.0,94347.0,0.2449155]
[1745663376721,1.0526133,94348.0,94347.0,0.033]
[1745663378329,1.0526133,94348.0,94347.0,0.065]
[1745663386036,0.7788,94348.0,94347.0,0.6329075]
[1745663386236,0.25,94348.0,94347.0,0.6329075]
[1745663386531,0.25,94348.0,94347.0,1.1628675]
[1745663387837,0.25,94348.0,94347.0,0.9128675]
[1745663388130,0.25,94348.0,94347.0,0.3829075]
[1745663389525,0.4619133,94348.0,94347.0,0.2769155]
[1745663403237,0.6299133,94348.0,94347.0,0.2769155]
[1745663405036,0.418,94348.0,94347.0,0.2769155]
[1745663405231,0.25,94348.0,94347.0,0.2769155]
[1745663405742,0.4619133,94348.0,94347.0,0.2769155]
[1745663406131,0.6299133,94348.0,94347.0,0.2769155]
[1745663407246,0.2119223,94344.0,94343.0,0.00794508]
[1745663407444,0.3629809,94344.0,94340.0,0.00105999]
[1745663407742,0.211929,94341.0,94340.0,0.00105999]
[1745663407943,0.581929,94341.0,94340.0,0.00105999]
[1745663408142,0.749929,94341.0,94340.0,0.21299129]
[1745663411043,0.749929,94341.0,94340.0,0.22111741]
[1745663414043,0.815029,94341.0,94340.0,0.22111741]
[1745663418845,0.815029,94341.0,94340.0,0.00918611]
[1745663420347,0.815029,94341.0,94340.0,0.22111741]
[1745663423148,0.815029,94341.0,94340.0,0.00918611]
[1745663423352,0.2119447,94334.0,94333.0,0.0529865]
[1745663423546,0.4119447,94334.0,94333.0,0.2649285]
[1745663424149,0.5799447,94334.0,94333.0,0.2649285]
[1745663427450,0.5799447,94334.0,94333.0,0.27285337]
[1745663436852,0.5799447,94334.0,94333.0,0.30285337]
[1745663447958,0.6104447,94334.0,94333.0,0.30285337]
[1745663483986,0.368,94334.0,94333.0,0.30285337]
[1745663484280,0.3608,94336.0,94335.0,0.2119425]
[1745663484469,0.3708,94336.0,94335.0,0.2119425]
[1745663484973,0.3708,94336.0,94335.0,0.2759425]
[1745663485168,0.5388,94336.0,94335.0,0.2759425]
[1745663490675,0.178,94336.0,94335.0,0.2759425]
[1745663491967,0.178,94336.0,94335.0,0.29204086]
[1745663492173,0.168,94336.0,94335.0,0.29204086]
[1745663494975,0.178,94336.0,94335.0,0.29204086]
[1745663497981,0.178,94336.0,94335.0,0.29160152]
[1745663499472,0.178,94336.0,94335.0,0.25930152]
[1745663499880,0.2434,94336.0,94335.0,0.25930152]
[1745663500085,0.2434,94336.0,94335.0,0.29070152]
[1745663501674,0.5534,94336.0,94331.0,0.00028]
[1745663501976,0.5727492,94332.0,94331.0,0.00028]
[1745663502181,0.2119515,94331.0,94330.0,0.2119531]
[1745663502381,0.2119672,94325.0,94324.0,0.2649466]
[1745663502681,0.5319672,94325.0,94324.0,0.2649466]
[1745663502880,0.6283672,94325.0,94324.0,0.2649466]
[1745663503183,0.7963672,94325.0,94324.0,0.2649466]
[1745663505985,0.7963672,94325.0,94324.0,0.2967466]
[1745663506483,0.26,94325.0,94324.0,0.2967466]
[1745663506786,0.26,94325.0,94324.0,0.3595466]
[1745663507090,0.471965,94325.0,94324.0,0.3595466]
[1745663507290,0.471965,94325.0,94324.0,0.3272466]
[1745663509594,0.504265,94325.0,94324.0,0.3272466]
[1745663513697,0.504265,94325.0,94324.0,0.2967466]
[1745663520296,0.2923,94325.0,94324.0,0.2967466]
[1745663520592,0.2923,94325.0,94324.0,0.3300466]
[1745663520993,0.228,94325.0,94324.0,0.3300466]
[1745663521198,0.228,94325.0,94324.0,0.3610466]
[1745663521893,0.259,94325.0,94324.0,0.3610466]
[1745663525296,0.259,94325.0,94324.0,0.2967466]
[1745663525498,0.2119807,94318.0,94317.0,0.2430782]
[1745663525799,0.2119874,94315.0,94290.0,0.4296]
[1745663525989,0.2119964,94312.0,94311.0,0.0529988]
[1745663526295,0.5619964,94312.0,94311.0,0.0529988]
[1745663526494,0.2119964,94311.0,94308.0,0.0832007]
[1745663526694,0.5619964,94311.0,94310.0,0.21305903]
[1745663526899,0.6265964,94311.0,94310.0,0.21305903]
[1745663527087,0.7945964,94311.0,94310.0,0.21305903]
[1745663529890,1.1553964,94311.0,94310.0,0.21305903]
[1745663533794,0.7945964,94311.0,94310.0,0.21305903]
[1745663533998,1.1553964,94311.0,94310.0,0.21305903]
[1745663536302,1.1553964,94311.0,94310.0,0.22086512]
[1745663548210,0.0530011,94308.0,94302.0,0.2120158]
[1745663548415,0.2120189,94303.0,94302.0,0.2437158]
[1745663548609,0.36,94303.0,94302.0,0.2437158]
[1745663548806,0.2453122,94304.0,94303.0,0.2120144]
[1745663549008,0.3753122,94304.0,94303.0,0.2434144]
[1745663549312,0.1633,94304.0,94303.0,0.2434144]
[1745663549515,0.1633,94304.0,94303.0,0.2751144]
[1745663549909,0.3753122,94304.0,94303.0,0.2751144]
[1745663550112,0.5433122,94304.0,94303.0,0.2751144]
[1745663551110,0.3313,94304.0,94303.0,0.2751144]
[1745663551522,0.298,94304.0,94303.0,0.2751144]
[1745663552015,0.298,94304.0,94303.0,0.28301143]
[1745663552211,0.13,94304.0,94303.0,0.28301143]
[1745663559210,0.13,94304.0,94303.0,0.2987209]
[1745663560222,0.298,94304.0,94303.0,0.2987209]
[1745663561113,0.298,94304.0,94303.0,0.28301143]
[1745663562217,0.13,94304.0,94303.0,0.28301143]
[1745663563127,0.13,94304.0,94303.0,0.29866274]
[1745663565328,0.13,94304.0,94303.0,0.28301143]
[1745663566230,0.13,94304.0,94303.0,0.29867299]
[1745663567233,0.13,94304.0,94303.0,0.45101143]
[1745663568731,0.13,94304.0,94303.0,1.95101143]
[1745663569123,0.132,94304.0,94303.0,1.7986516]
[1745663571329,0.132,94304.0,94303.0,1.78301143]
[1745663572542,0.002,94304.0,94303.0,1.79863924]
[1745663573133,0.0307,94315.0,94314.0,0.2119897]
[1745663573330,0.3226874,94315.0,94314.0,0.22761751]
[1745663573629,0.3544874,94315.0,94314.0,0.2119897]
[1745663573831,0.1107,94315.0,94314.0,0.22766906]
[1745663574036,0.0323,94322.0,94321.0,0.211974]
[1745663574337,0.01,94322.0,94321.0,0.27566038]
[1745663574738,0.01,94322.0,94321.0,0.46024188]
[1745663574934,0.0319,94333.0,94332.0,0.2119492]
[1745663575133,0.1019,94333.0,94332.0,0.2276107]
[1745663575329,0.1019,94333.0,94332.0,0.2119492]
[1745663580738,0.07,94333.0,94332.0,0.2119492]
[1745663580941,0.0052,94338.0,94337.0,0.211938]
[1745663581140,0.0316,94349.0,94348.0,0.2119133]
[1745663581447,0.0319,94360.0,94354.0,0.2118998]
[1745663581639,0.4008,94355.0,94354.0,0.2118998]
[1745663582141,0.4008,94355.0,94354.0,0.22257129]
[1745663583133,0.4008,94355.0,94354.0,0.2118998]
[1745663583635,0.4008,94355.0,94354.0,0.23042996]
[1745663583842,0.4008,94355.0,94354.0,0.21998706]
[1745663585045,0.04,94355.0,94354.0,0.21998706]
[1745663586643,0.04,94355.0,94354.0,0.23051507]
[1745663586845,0.04,94355.0,94354.0,0.29611507]
[1745663587851,0.0013,94361.0,94354.0,0.19019927]
[1745663588148,0.0052,94368.0,94367.0,0.2118706]
[1745663588543,0.0052,94368.0,94367.0,0.31783859]
[1745663588745,0.0327,94385.0,94374.0,0.0529633]
[1745663588945,0.0319,94384.0,94377.0,0.2118482]
[1745663589547,0.0319,94384.0,94377.0,0.3178042]
[1745663589753,0.0319,94384.0,94383.0,0.2118347]
[1745663590047,0.1019,94384.0,94383.0,0.2118347]
[1745663590551,0.1331,94384.0,94383.0,0.2118347]
[1745663590739,0.1331,94384.0,94383.0,0.2430347]
[1745663597245,0.3011,94384.0,94383.0,0.2430347]
[1745663597657,0.5511,94384.0,94383.0,0.2118347]
[1745663598142,0.5511,94384.0,94381.0,0.0529594]
[1745663598143,0.2118369,94382.0,94381.0,0.211836]
[1745663598345,0.5218369,94382.0,94381.0,0.211836]
[1745663599145,0.6898369,94382.0,94381.0,0.211836]
[1745663600545,1.0506369,94382.0,94381.0,0.211836]
[1745663601655,0.2648207,94375.0,94374.0,0.0529635]
[1745663601858,0.16,94375.0,94374.0,0.2648139]
[1745663602054,0.328,94375.0,94374.0,0.2648139]
[1745663602447,0.3916,94375.0,94374.0,0.2648139]
[1745663604652,0.6034527,94375.0,94374.0,0.2648139]
[1745663606759,0.3916,94375.0,94374.0,0.2648139]
[1745663607261,0.6034527,94375.0,94374.0,0.2648139]
[1745663612457,0.3916,94375.0,94374.0,0.2648139]
[1745663612857,0.6034527,94375.0,94374.0,0.2648139]
[1745663613260,0.3916,94375.0,94374.0,0.2648139]
[1745663614360,0.6034527,94375.0,94374.0,0.2648139]
[1745663614959,0.6034527,94375.0,94369.0,0.0323]
[1745663614960,0.2118639,94371.0,94370.0,0.0529659]
[1745663615152,0.9126639,94371.0,94370.0,0.2648298]
[1745663615354,0.9753639,94371.0,94370.0,0.2648298]
[1745663616060,0.3178212,94365.0,94364.0,0.2118774]
[1745663616253,0.6578212,94365.0,94364.0,0.2118774]
[1745663617256,0.8258212,94365.0,94364.0,0.2118774]
[1745663618462,0.5609697,94365.0,94358.0,0.00056]
[1745663618659,0.5609697,94365.0,94359.0,0.2648477]
[1745663618660,0.5726886,94360.0,94359.0,0.2648477]
[1745663618863,0.8926886,94360.0,94359.0,0.2648477]
[1745663619064,0.8926886,94360.0,94359.0,0.2959477]
[1745663619258,1.0606886,94360.0,94359.0,0.2959477]
[1745663619863,1.0606886,94360.0,94359.0,0.3489198]
[1745663620763,1.1246886,94360.0,94359.0,0.3489198]
[1745663621962,0.7638886,94360.0,94359.0,0.3489198]
[1745663622163,1.1246886,94360.0,94359.0,0.3489198]
[1745663624069,0.7638886,94360.0,94359.0,0.3489198]
[1745663624270,1.1246886,94360.0,94359.0,0.3489198]
[1745663630967,0.7638886,94360.0,94359.0,0.3489198]
[1745663631167,1.1246886,94360.0,94359.0,0.3489198]
[1745663632269,0.6504,94360.0,94359.0,0.3489198]
[1745663632471,0.6188,94360.0,94359.0,0.3489198]
[1745663632968,0.2118624,94371.0,94370.0,0.2118616]
[1745663633172,0.3335624,94371.0,94370.0,0.2118616]
[1745663633375,0.3335624,94371.0,94370.0,0.3049616]
[1745663635276,0.3335624,94371.0,94370.0,0.2736616]
[1745663637167,0.5015624,94371.0,94370.0,0.2736616]
[1745663639382,0.3335624,94371.0,94370.0,0.2736616]
[1745663642186,0.5015624,94371.0,94370.0,0.2736616]
[1745663646883,0.258,94371.0,94370.0,0.2736616]
[1745663647277,0.09,94371.0,94370.0,0.2736616]
[1745663647483,0.3018616,94371.0,94370.0,0.29022478]
[1745663650575,0.3018616,94371.0,94370.0,0.2736616]
[1745663653678,0.3329616,94371.0,94370.0,0.2736616]
[1745663653877,0.3656616,94371.0,94370.0,0.2736616]
[1745663654282,0.5336616,94371.0,94370.0,0.2736616]
[1745663655189,0.5336616,94371.0,94370.0,0.0316]
[1745663655392,0.2648375,94369.0,94366.0,0.0535278]
[1745663655580,0.2118976,94355.0,94353.0,0.01061724]
[1745663655785,0.2118998,94354.0,94353.0,0.01061724]
[1745663656085,0.6240998,94354.0,94353.0,0.2119021]
[1745663656892,0.6561998,94354.0,94353.0,0.2119021]
[1745663657094,0.8241998,94354.0,94353.0,0.2119021]
[1745663658790,0.8281998,94354.0,94353.0,0.2119021]
[1745663659283,0.2119021,94353.0,94352.0,0.00812835]
[1745663659483,0.21192,94347.0,94346.0,0.264897]
[1745663659694,0.54192,94347.0,94346.0,0.264897]
[1745663659890,0.2119223,94345.0,94344.0,0.2119215]
[1745663660085,0.9127223,94345.0,94344.0,0.21993934]
[1745663660286,0.0529826,94341.0,94337.0,0.00530012]
[1745663660497,0.2119358,94338.0,94337.0,0.21723812]
[1745663660695,0.5419358,94338.0,94337.0,0.00530012]
[1745663660885,0.64793981,94338.0,94337.0,0.00530012]
[1745663661085,0.81593981,94338.0,94337.0,0.00530012]
[1745663661798,0.2119717,94322.0,94321.0,0.1059868]
[1745663661989,0.3919717,94322.0,94321.0,0.1059868]
[1745663662186,0.348,94322.0,94321.0,0.3179493]
[1745663662591,0.6220717,94322.0,94321.0,0.3179493]
[1745663663199,0.6220717,94322.0,94321.0,0.3199493]
[1745663663702,0.6220717,94322.0,94321.0,0.32806075]
[1745663665296,0.6220717,94322.0,94321.0,0.01011145]
[1745663665602,0.9828717,94322.0,94321.0,0.002]
[1745663666689,0.7709,94322.0,94318.0,0.052995]
[1745663666888,0.2649807,94318.0,94317.0,0.2119822]
[1745663667093,0.5049807,94318.0,94317.0,0.2119822]
[1745663668100,0.6729807,94318.0,94317.0,0.2119822]
[1745663669205,0.6739807,94318.0,94317.0,0.2119822]
[1745663669606,0.6739807,94318.0,94317.0,0.21977912]
[1745663671307,0.5059807,94318.0,94317.0,0.21977912]
[1745663672109,0.6739807,94318.0,94317.0,0.21977912]
[1745663674404,0.7048807,94318.0,94317.0,0.21977912]
[1745663679814,0.7048807,94318.0,94317.0,0.25297912]
[1745663687931,0.6209852,94318.0,94317.0,0.25297912]
[1745663688925,0.189,94318.0,94317.0,0.25297912]
[1745663689121,0.021,94318.0,94317.0,0.42097912]
[1745663689321,0.021,94318.0,94317.0,0.45097912]
[1745663693027,0.021,94318.0,94317.0,0.46673031]
[1745663696131,0.021,94318.0,94317.0,0.29873031]
[1745663696925,0.021,94318.0,94317.0,0.28297912]
[1745663701936,0.021,94318.0,94317.0,0.29861299]
[1745663707035,0.021,94318.0,94317.0,0.28297912]
[1745663713935,0.3608,94332.0,94328.0,0.0529891]
[1745663714135,0.4321,94332.0,94331.0,0.2119515]
[1745663714732,0.0713,94332.0,94331.0,0.2119515]
[1745663715339,0.0753,94332.0,94331.0,0.2119515]
[1745663718434,0.044,94332.0,94331.0,0.22265288]
[1745663720438,0.044,94332.0,94331.0,0.2119515]
[1745663721038,0.044,94332.0,94331.0,0.2438515]
[1745663725137,0.212,94332.0,94331.0,0.2438515]
[1745663725736,0.212,94332.0,94331.0,0.2746515]
[1745663728240,0.044,94332.0,94331.0,0.2746515]
[1745663731151,0.212,94332.0,94331.0,0.2746515]
[1745663738939,0.172,94332.0,94331.0,0.2746515]
[1745663739144,0.0301,94343.0,94342.0,0.2119268]
[1745663739340,0.0601,94343.0,94342.0,0.5727268]
[1745663740247,0.2281,94343.0,94342.0,0.5727268]
[1745663745341,0.2281,94343.0,94342.0,0.2119268]
[1745663759050,0.2281,94343.0,94342.0,0.2429268]
[1745663766151,0.2281,94343.0,94342.0,0.6037268]
[1745663768456,0.3608,94358.0,94357.0,0.2118931]
[1745663768776,0.0302,94363.0,94362.0,0.2118818]
[1745663768951,0.2402,94363.0,94362.0,0.2118818]
[1745663769153,0.4082,94363.0,94362.0,0.22775781]
[1745663769956,0.4082,94363.0,94362.0,0.23832824]
[1745663770155,0.2402,94363.0,94362.0,0.26842824]
[1745663770359,0.2402,94363.0,94362.0,0.25255223]
[1745663770862,0.21,94363.0,94362.0,0.25255223]
[1745663773163,0.378,94363.0,94362.0,0.25255223]
[1745663774161,0.21,94363.0,94362.0,0.25255223]
[1745663775163,0.378,94363.0,94362.0,0.61335223]
[1745663778062,0.378,94363.0,94362.0,0.25255223]
[1745663778362,0.378,94363.0,94362.0,0.62912331]
[1745663780358,0.378,94363.0,94362.0,0.61335223]
[1745663781461,0.378,94363.0,94362.0,0.62912826]
[1745663783779,0.0052,94368.0,94367.0,0.2118706]
[1745663783964,0.0052,94368.0,94367.0,0.22764663]
[1745663784674,0.0052,94368.0,94367.0,0.29144663]
[1745663785059,0.0052,94368.0,94367.0,0.29930619]
[1745663785263,0.1732,94368.0,94367.0,0.29930619]
[1745663785767,0.2037,94368.0,94367.0,0.29930619]
[1745663790672,0.2037,94368.0,94367.0,0.29923462]
[1745663791873,0.1732,94368.0,94367.0,0.29923462]
[1745663792061,0.0052,94368.0,94367.0,0.29923462]
[1745663793268,0.0052,94368.0,94367.0,0.28353016]
[1745663796461,0.038,94368.0,94367.0,0.28353016]
[1745663797064,0.206,94368.0,94367.0,0.28353016]
[1745663797469,0.206,94368.0,94367.0,0.64433016]
[1745663798762,0.206,94368.0,94367.0,0.28353016]
[1745663798970,0.206,94368.0,94367.0,0.66025231]
[1745663799365,0.206,94368.0,94367.0,0.29947441]
[1745663799565,0.206,94368.0,94367.0,0.66027541]
[1745663800164,0.038,94368.0,94367.0,0.66027541]
[1745663800572,0.0703,94368.0,94367.0,0.66027541]
[1745663801172,0.2383,94368.0,94367.0,0.66027541]
[1745663801368,0.2383,94368.0,94367.0,0.66015988]
[1745663801976,0.2383,94368.0,94367.0,0.29935988]
[1745663803180,0.4501684,94368.0,94367.0,0.26865629]
[1745663803472,0.2583,94368.0,94367.0,0.21973016]
[1745663805478,0.2583,94368.0,94367.0,0.26682048]
[1745663806670,0.2583,94368.0,94367.0,0.25113016]
[1745663806875,0.2583,94368.0,94367.0,0.26711694]
[1745663807667,0.2583,94368.0,94367.0,0.29791694]
[1745663808576,0.2583,94368.0,94367.0,0.29790932]
[1745663813886,0.2583,94368.0,94367.0,0.29801304]
[1745663817586,0.2583,94368.0,94367.0,0.2983765]
[1745663819292,0.2255,94368.0,94367.0,0.2983765]
[1745663820189,0.0575,94368.0,94367.0,0.2983765]
[1745663820389,0.0375,94368.0,94367.0,0.2983765]
[1745663821081,0.0375,94368.0,94367.0,0.29845034]
[1745663822980,0.0052,94368.0,94367.0,0.29845034]
[1745663824392,0.0052,94368.0,94367.0,0.29848726]
[1745663824582,0.0052,94368.0,94367.0,1.79848726]
[1745663824788,0.0308,94372.0,94371.0,0.2118616]
[1745663824979,0.0308,94372.0,94371.0,0.2284187]
[1745663825178,0.1988,94372.0,94371.0,0.2284187]
[1745663826190,0.2388,94372.0,94371.0,0.2284187]
[1745663826484,0.7006594,94372.0,94371.0,0.2284187]
[1745663830607,0.7006594,94372.0,94371.0,0.2118616]
[1745663832910,0.4888,94372.0,94371.0,0.2118616]
[1745663834805,0.7006594,94372.0,94371.0,0.2118616]
[1745663838613,0.7006594,94372.0,94371.0,0.22839241]
[1745663841005,0.7006594,94372.0,94371.0,0.22815811]